[Event "ITT 1st Parada Jamundi 2022"]
[Site "Jamundi Valle"]
[Date "2022.12.07"]
[Round "2.9"]
[White "Argote Heredia, Valentina"]
[Black "Avila Pavas, Santiago"]
[Result "0-1"]
[ECO "B76"]
[WhiteElo "2140"]
[BlackElo "2461"]
[Annotator "TA"]
[PlyCount "52"]
[EventDate "2022.12.05"]
[EventType "swiss"]
[EventCountry "COL"]
[SourceTitle "playchess.com"]
[Source "ChessBase"]
[SourceQuality "1"]
[TimeControl "5400+30"]

{[%evp 23,52,78,90,83,74,85,108,-29,-27,-133,-90,-148,-160,-153,-140,-207,-192,-237,-208,-212,-196,-440,-432,-398,-416,-384,-338,-730,-559,-537,-544]} 1. e4 {[%emt 0:13:36]} c5 {[%emt 0:00:11]} 2. Nf3 {[%emt 0:00:13]} d6 {[%emt 0:00:07]} 3. d4 {[%emt 0:00:15]} cxd4 {[%emt 0:00:08]} 4. Nxd4 {[%emt 0:00:05]} Nf6 {[%emt 0:00:09]} 5. Nc3 {[%emt 0:00:05]} g6 {[%emt 0:00:07]} 6. Be3 {[%emt 0:00:40]} Bg7 {[%emt 0:00:11]} 7. f3 {[%emt 0:00:12]} Nc6 {[%emt 0:00:11]} 8. Qd2 {[%emt 0:00:20]} O-O {[%emt 0:00:12]} 9. O-O-O {[%emt 0:00:37]} Bd7 {[%emt 0:00:13]} 10. g4 {[%emt 0:01:54][%cal Bg2g4,Bg4g5][%mdl 32]} Rc8 {[%emt 0:00:20]} 11. Kb1 {[%emt 0:01:23]} Ne5 {[%emt 0:03:16]} 12. h4 {[%emt 0:02:18]} h5 {[%emt 0:06:52]} 13. g5 {[%emt 0:03:19] B76: Sicilian Dragon: Yugoslav Attack, 9 g4 and 9 0-0-0.} (13. gxh5 {keeps more tension.} Nxh5 14. Be2 Nc4 15. Bxc4 Rxc4 16. Nde2) 13... Ne8 {[%emt 0:03:12]} 14. Be2 {[%emt 0:08:26]} (14. f4 {looks sharper.} Ng4 15. f5 e5 16. Nde2) 14... Nc7 {[%emt 0:03:12][%cal Ob7b5] [#]} 15. Nb3 $146 {[%emt 0:04:07]} (15. f4 $16) ({Predecessor:} 15. f4 Ng4 16. Bxg4 Bxg4 17. Rdg1 e5 18. Nb3 Re8 19. Rxg4 hxg4 20. f5 d5 21. exd5 gxf5 22. Bxa7 {0-1 (35) Rego,P (2273)-Dimitrov,A (2269) Chess.com INT 2022}) 15... b5 $1 $11 {[%emt 0:01:58][%cal Bb7b5,Bb5b4][%mdl 32]} 16. Bd4 {[%emt 0:08:25]} (16. a3 $11 {keeps the balance.}) 16... b4 $17 {[%emt 0:11:27]} 17. Nd5 {[%emt 0:00:50]} (17. Bxe5 $142 Bxe5 18. Nd5 Nxd5 19. Qxd5) 17... Nxd5 {[%emt 0:00:40]} 18. exd5 {[%emt 0:03:15]} Bf5 {[%emt 0:00:24]} 19. Rc1 {[%emt 0:04:52]} (19. Na1 $17 {is a better defense.}) 19... a5 $19 {[%emt 0:00:22][%cal Ba7a5,Ba5a4][%mdl 32]} 20. Qe3 {[%emt 0:07:08]} a4 {[%emt 0:04:52] Against f4} 21. Nd2 {[%emt 0:02:29]} Qa5 {[%emt 0:05:33]} 22. f4 $2 {[%emt 0:02:45] [#]} (22. Bxe5 {only move.} Bxe5 23. Nc4 Qxd5 24. Rhd1) 22... Qxd5 $1 {[%emt 0:57:53]} 23. fxe5 {[%emt 0:02:04]} dxe5 {[%emt 0:00:00] Dancing on a razor blade.} 24. Bd3 {[%emt 0:06:39]} exd4 {[%emt 0:00:00]} 25. Qxe7 {[%emt 0:00:41]} (25. Qf3 Qxf3 26. Nxf3) 25... Be6 {[%emt 0:00:00][%csl Ge6][%cal Rd5a2] This pair of bishops is nice.} 26. b3 {[%emt 0:00:59]} axb3 {[%emt 0:00:00] Weighted Error Value: White=0.90/Black=0.08 (flawless)} 0-1

[Event "ITT 1st Parada Jamundi 2022"]
[Site "Jamundi Valle"]
[Date "2022.12.07"]
[Round "2.10"]
[White "Malka, Samuel"]
[Black "Londono Lopez, Donaldo"]
[Result "1-0"]
[ECO "D85"]
[WhiteElo "2265"]
[BlackElo "2055"]
[Annotator "TA"]
[PlyCount "69"]
[EventDate "2022.12.05"]
[EventType "swiss"]
[EventCountry "COL"]
[SourceTitle "playchess.com"]
[Source "ChessBase"]
[SourceQuality "1"]
[TimeControl "5400+30"]

{[%evp 15,69,9,0,-18,0,-7,38,17,47,41,55,3,14,11,36,16,20,17,34,20,37,20,21,26,29,34,22,22,41,42,111,97,147,144,166,171,233,225,275,145,216,205,199,185,219,208,415,415,491,488,465,462,433,342,1531,1447]} 1. d4 {[%emt 0:01:04]} Nf6 {[%emt 0:00:27]} 2. c4 {[%emt 0:00:05]} g6 {[%emt 0:00:40]} 3. Nc3 {[%emt 0:00:15]} d5 {[%emt 0:00:23]} 4. cxd5 {[%emt 0:00:10]} Nxd5 {[%emt 0:00:28]} 5. e4 {[%emt 0:00:09]} Nxc3 {[%emt 0:00:25]} 6. bxc3 {[%emt 0:00:31]} Bg7 {[%emt 0:00:28]} 7. Nf3 {[%emt 0:00:04]} c5 {[%emt 0:00:16]} 8. Bb5+ {[%emt 0:00:04]} Nc6 {[%emt 0:00:34][%cal Rc5d4] The main line 8...Nc6 scores better than 8...Bd7.} 9. d5 {[%emt 0:00:22] D85: Exchange Grünfeld: Unusual White 7th moves and lines with 7 Nf3.} (9. dxc5 Bxc3+ 10. Bd2 Bxa1 11. Qxa1 f6 $17) 9... a6 {[%emt 0:03:03]} 10. Be2 {[%emt 0:00:30] [#]} Na5 $146 {[%emt 0:03:14]} (10... Bxc3+ {feels hotter.} 11. Bd2 Bxa1 12. Qxa1 Nd4) ({Predecessor:} 10... Bxc3+ 11. Bd2 Bxa1 12. Qxa1 Nd4 13. Nxd4 cxd4 14. Qxd4 f6 15. O-O O-O 16. Bh6 e5 {0-1 (41) Ivanisevic,I (2601)-Abdusattorov,N (2651) Belgrade 2022}) 11. Bd2 {[%emt 0:12:09][%cal Oc3c4] White is slightly better.} c4 {[%emt 0:01:44]} 12. O-O {[%emt 0:07:44]} O-O {[%emt 0:01:34]} 13. Be3 {[%emt 0:11:08]} (13. Bf4 $14) 13... Bxc3 {[%emt 0:08:14]} 14. Rc1 {[%emt 0:02:08]} Bg7 {[%emt 0:02:47]} (14... Bb2 {looks sharper.} 15. Rb1 c3 16. Qd4 Bg4) 15. Bxc4 {[%emt 0:01:23]} Nxc4 {[%emt 0:00:35]} 16. Rxc4 {[%emt 0:00:08]} Bd7 {[%emt 0:00:32]} 17. Re1 {[%emt 0:05:02]} b5 {[%emt 0:06:55]} 18. Rc1 {[%emt 0:04:28]} Qa5 {[%emt 0:04:17]} 19. Qb3 {[%emt 0:02:23]} Rfc8 {[%emt 0:05:52]} 20. Bc5 {[%emt 0:04:12]} Bh6 {[%emt 0:11:28]} 21. Bb4 {[%emt 0:05:20]} Qd8 {[%emt 0:04:12]} 22. Rxc8 {[%emt 0:00:50]} Bxc8 {[%emt 0:08:32]} (22... Rxc8 $14 23. Qa3 Bf8) 23. Ne5 $1 $36 {[%emt 0:07:26][%mdl 2048] Nc6 is the strong threat. Keeping Black busy.} Bd7 {[%emt 0:08:08]} ({Black should play} 23... Bb7) 24. d6 {[%emt 0:05:16][%cal Bd5d6,Bd6e7][%mdl 32] White is much more active.} Be6 {[%emt 0:05:14]} 25. dxe7 {[%emt 0:02:24]} Qc7 {[%emt 0:00:36]} (25... Qe8 $142 26. Qd3 Bg5) 26. Qg3 $18 {[%emt 0:15:22]} Bg7 {[%emt 0:13:29] [#]} 27. Nf3 {[%emt 0:01:17]} ({Only move:} 27. Nxf7 $1 $18 {[%mdl 512]} Qxg3 28. Nd8) 27... Qxg3 {[%emt 0:02:39]} (27... Qd7 $16) 28. hxg3 {[%emt 0:00:04] aiming for e5.} Re8 {[%emt 0:01:51][%cal Og7f6] [#]} 29. e5 {[%emt 0:01:39] Inhibits Bf6. Black must now prevent Rd1.} a5 {[%emt 0:02:24]} 30. Bc5 {[%emt 0:04:43]} ({Not} 30. Bxa5 Rxe7 31. a3 Rd7 $11) 30... b4 $2 {[%emt 0:00:48] [#]} (30... Bxa2 31. Rd1 (31. Ra1 Bc4 $16) 31... f6) 31. Rd1 $1 {[%emt 0:00:28] White threatens Rd8 and mate.} Bc4 {[%emt 0:03:13]} (31... Bxa2 {leads to mate.} 32. Rd8 h6 33. Rxe8+ Kh7 34. Rd8 g5 35. e8=Q Kg6 36. g4) 32. Rd8 {[%emt 0:00:33] Prevents f6.} Bb5 {[%emt 0:00:01]} 33. Nd4 {[%emt 0:00:55]} Ba4 {[%emt 0:00:12]} 34. f4 {[%emt 0:00:19] Strongly threatening Nb3.} g5 $2 {[%emt 0:01:03]} (34... f6 35. Ne6 Kf7) 35. Nf5 {[%emt 0:07:25] Weighted Error Value: White=0.15 (very precise) /Black=0.39} 1-0

[Event "ITT 1st Parada Jamundi 2022"]
[Site "Jamundi Valle"]
[Date "2022.12.07"]
[Round "2.11"]
[White "Pazos Gambarrotti, Plinio"]
[Black "Zuluaga Mancilla, Cesar"]
[Result "0-1"]
[ECO "A12"]
[WhiteElo "2083"]
[BlackElo "2230"]
[Annotator "TA"]
[PlyCount "66"]
[EventDate "2022.12.05"]
[EventType "swiss"]
[EventCountry "COL"]
[SourceTitle "playchess.com"]
[Source "ChessBase"]
[SourceQuality "1"]
[TimeControl "5400+30"]

{[%evp 21,66,0,0,-21,-4,-55,-58,-147,-162,-172,-130,-128,-124,-151,-132,-115,-101,-125,-64,-131,-139,-138,-129,-131,-131,-124,-92,-142,-141,-140,-133,-139,-115,-702,-706,-843,-828,-802,-620,-29971,-29972,-29971,-29973,-29970,-29970,-6175,-1937]} 1. Nf3 {[%emt 0:00:04]} d5 {[%emt 0:01:51]} 2. g3 {[%emt 0:00:22]} c6 {[%emt 0:00:22]} 3. Bg2 {[%emt 0:00:07]} Nf6 {[%emt 0:00:35]} 4. b3 {[%emt 0:00:17]} Bf5 {[%emt 0:00:13]} 5. Bb2 {[%emt 0:00:14]} Nbd7 {[%emt 0:00:33]} 6. O-O {[%emt 0:00:13]} h6 {[%emt 0:00:06]} 7. d3 {[%emt 0:00:33][%cal Bd2d3,Bd3d4][%mdl 32]} e6 {[%emt 0:00:56]} 8. Nbd2 {[%emt 0:00:38]} Bh7 {[%emt 0:00:45]} 9. Re1 {[%emt 0:00:18]} Bc5 {[%emt 0:03:36]} 10. d4 {[%emt 0:05:47]} Be7 {[%emt 0:01:30]} 11. c4 {[%emt 0:01:00]} O-O {[%emt 0:01:15]} 12. h3 {[%emt 0:03:56] A12: English Opening: 1...c6 with b3 by White.} a5 {[%emt 0:01:46][%cal Ba7a5,Ba5a4][%mdl 32] [#]} 13. Nh2 $146 {[%emt 0:08:24]} ({Better is} 13. a3 $11) ({Predecessor:} 13. e3 Ne4 14. Rc1 c5 15. cxd5 exd5 16. Ne5 Nxe5 17. dxe5 b6 18. Rf1 f6 19. Nf3 fxe5 20. Nxe5 {0-1 (40) Al Mughaizwi,M-Noshin,A (2004) Tornelo INT 2021}) 13... a4 $15 {[%emt 0:03:28]} 14. e4 {[%emt 0:01:19]} (14. c5 $15) 14... Bb4 $17 {[%emt 0:00:56]} 15. Re3 {[%emt 0:07:28]} Bxd2 {[%emt 0:03:05]} 16. Qxd2 {[%emt 0:00:06]} Nxe4 {[%emt 0:00:11]} 17. Qc1 {[%emt 0:00:23]} axb3 {[%emt 0:01:08]} 18. axb3 {[%emt 0:00:30]} Qb6 {[%emt 0:01:45]} 19. Nf3 {[%emt 0:01:47]} Rfc8 {[%emt 0:00:25]} (19... Rfb8 $17 20. c5 Rxa1 21. Qxa1 Qa6 22. Qxa6 bxa6) 20. Nd2 {[%emt 0:01:18]} (20. c5 $1 $15 Qd8 21. b4) 20... Rxa1 {[%emt 0:00:42] Black is much more active.} 21. Bxa1 {[%emt 0:00:14]} Nxd2 {[%emt 0:00:16]} 22. Qxd2 {[%emt 1:06:32]} Ra8 {[%emt 0:00:53]} 23. Bb2 {[%emt 0:00:00]} Nf6 {[%emt 0:05:18]} 24. Bf1 {[%emt 0:00:00]} ({White should try} 24. c5 Qa7 25. b4) 24... Ra2 {[%emt 1:10:55]} 25. c5 {[%emt 0:00:00]} Qd8 {[%emt 0:00:00]} 26. Re2 {[%emt 0:00:00]} Qa8 {[%emt 0:00:00]} 27. Qb4 $2 {[%emt 0:00:00][%mdl 8192] This costs White the game.} (27. f3 $17) 27... Bd3 $19 {[%emt 0:00:00]} 28. Rd2 {[%emt 0:00:00]} Bxf1 {[%emt 0:00:00]} 29. Kxf1 {[%emt 0:00:00]} Ne4 {[%emt 0:00:00] [#] And now ...Rxb2 would win.} 30. Bc3 {[%emt 0:00:00]} Qa6+ {[%emt 0:00:00]} 31. Kg2 {[%emt 0:00:00]} Nxd2 {[%emt 0:00:00]} 32. Bxd2 {[%emt 0:00:00]} Qe2 {[%emt 0:00:00]} 33. Be1 {[%emt 0:05:30]} Ra1 {[%emt 0:04:30] Weighted Error Value: White=0.88/Black=0.21 (precise)} 0-1

[Event "ITT 1st Parada Jamundi 2022"]
[Site "Jamundi Valle"]
[Date "2022.12.07"]
[Round "2.12"]
[White "Gonzalez Velasco, Leandro"]
[Black "Arango Arenas, Juan Camilo"]
[Result "0-1"]
[ECO "B34"]
[WhiteElo "1915"]
[BlackElo "2202"]
[Annotator "TA"]
[PlyCount "82"]
[EventDate "2022.12.05"]
[EventType "swiss"]
[EventCountry "COL"]
[SourceTitle "playchess.com"]
[Source "ChessBase"]
[SourceQuality "1"]
[TimeControl "5400+30"]

{[%evp 20,82,0,-10,6,8,7,0,0,-152,-160,-175,-183,-175,-185,-225,-230,-351,-325,-318,-311,-310,-176,-190,-106,-102,-8,-8,-8,-8,-8,-8,-8,-8,-8,-8,0,-6,0,0,0,0,0,-18,-8,-8,0,0,13,0,0,-16,-16,-16,41,-523,-516,-29964,-29966,-29968,-29970,-29957,-29942,-29959,-29957]} 1. e4 {[%emt 0:00:36]} c5 {[%emt 0:00:27]} 2. Nf3 {[%emt 0:00:15]} g6 {[%emt 0:02:06]} 3. d4 {[%emt 0:00:38]} cxd4 {[%emt 0:00:07]} 4. Nxd4 {[%emt 0:00:10]} Nc6 {[%emt 0:00:07]} 5. Nc3 {[%emt 0:00:17]} Bg7 {[%emt 0:00:07]} 6. Be3 {[%emt 0:00:16][%cal Bc1e3,Be3d4,Bd4e5][%mdl 32]} Nf6 {[%emt 0:01:48]} 7. Nxc6 {[%emt 0:00:23]} bxc6 {[%emt 0:00:56]} 8. e5 {[%emt 0:00:12]} Ng8 {[%emt 0:00:34]} 9. Bd4 {[%emt 0:02:39]} f6 {[%emt 0:00:09]} 10. f4 {[%emt 0:05:39]} Qa5 {[%emt 0:01:00]} 11. Qe2 {[%emt 0:02:26] 11.Qd2 is more fashionable.} fxe5 {[%emt 0:00:29] B34: Sicilian: Accelerated Dragon with 5 Nc3: sidelines.} (11... c5 $5 {[%cal Rc5d4]} 12. Be3 fxe5 $11) 12. Bxe5 {[%emt 0:02:45]} (12. fxe5 Nh6 13. Qc4 Nf5 $17) 12... Nf6 {[%emt 0:00:14]} 13. O-O-O {[%emt 0:04:53]} O-O $1 {[%emt 0:01:55] [#] The position is equal.} 14. Kb1 $146 {[%emt 0:19:12]} (14. Qc4+ $11 Kh8 15. h3) ({Predecessor:} 14. Qc4+ Kh8 15. h4 d6 16. h5 gxh5 17. Bd4 Bg4 18. Be2 Rab8 19. Bxg4 hxg4 20. Rde1 {0-1 (50) Ronka,E (2324)-Slugin,S (2353) Chess.com INT 2021}) 14... d6 $1 $17 {[%emt 0:06:04]} 15. Bxf6 {[%emt 0:02:59]} Bxf6 {[%emt 0:00:21]} 16. Ne4 {[%emt 0:06:39]} Bg7 {[%emt 0:00:50]} ({And not} 16... Be6 17. Nxf6+ Rxf6 18. b3 $11) 17. Qc4+ {[%emt 0:26:47]} d5 {[%emt 0:16:35]} 18. Qxc6 {[%emt 0:00:40]} (18. Qc5 $142 Qb6 19. Qxb6 axb6 20. Nf2) 18... Rb8 {[%emt 0:00:55]} 19. Qxd5+ {[%emt 0:01:09]} Qxd5 {[%emt 0:00:13] Really sharp!} 20. Rxd5 {[%emt 0:00:06]} Rxb2+ {[%emt 0:00:06]} ({Stronger than} 20... Bxb2 21. Rb5 Rxb5 22. Bxb5 $11) (20... Bb7 $142 21. Bc4 e6) 21. Kc1 $19 {[%emt 0:00:08]} Bb7 {[%emt 0:00:10] A strong pair of Bishops.} (21... Rxf4 $2 22. Rd8+ Rf8 23. Bc4+ e6 24. Rxc8 $1 {[%mdl 512]} Rxc8 25. Bxe6+ Kf8 26. Bxc8 $18) (21... Rxa2 $19 22. Rb5 Ra1+ 23. Rb1 Ra4) 22. Bc4 $17 {[%emt 0:04:45] [#] Rf5+ is the strong threat.} e6 {[%emt 0:00:10] Inhibits Rf5. Black is more active.} (22... Kh8 $1 $17 {[%cal Ob2b4] And now ...Rb4! would win.} 23. Ng5 Rb4) 23. Rd7 $1 $11 {[%emt 0:02:30]} Bxe4 {[%emt 0:06:21]} 24. Rxg7+ $1 {[%emt 0:00:13][%mdl 64] Remove Defender} Kxg7 {[%emt 0:00:02]} 25. Kxb2 {[%emt 0:00:06]} Bxg2 {[%emt 1:01:14][%mdl 4096] Endgame KRB-KRB} 26. Rd1 {[%emt 0:03:19]} Rxf4 {[%emt 0:00:00]} 27. Bxe6 {[%emt 0:00:21]} Kf6 {[%emt 0:00:00]} 28. Bb3 {[%emt 0:02:28]} h5 {[%emt 0:00:00]} 29. c4 {[%emt 0:03:42]} g5 {[%emt 0:00:00]} 30. c5 {[%emt 0:01:37]} Ke5 {[%emt 0:00:00]} 31. Rd6 {[%emt 0:06:45] Inhibits Bc6.} Rf6 {[%emt 0:00:00]} 32. Rd7 {[%emt 0:01:19]} Be4 {[%emt 0:00:00]} 33. Kc3 {[%emt 0:00:31] aiming for Re7+.} g4 {[%emt 0:00:00]} 34. Rxa7 {[%emt 0:00:32]} h4 {[%emt 0:00:00] Hoping for ...g3.} 35. Rg7 {[%emt 0:00:29] Inhibits g3.} g3 {[%emt 0:00:00]} 36. hxg3 {[%emt 0:00:24] Black must now prevent Rg5+.} h3 {[%emt 0:00:00]} (36... Rf3+ $11 37. Kb4 h3 38. Re7+ Kd4) 37. Rg5+ $2 {[%emt 0:00:10][%mdl 8192] White does not recover from this.} (37. Re7+ $14 {was forced to keep a grip.} Kf5 38. Rh7) 37... Rf5 $19 {[%emt 0:00:00]} 38. Rg4 {[%emt 0:00:59]} (38. Rg8 $19 h2 39. Re8+ Kf6 40. Rf8+ Ke7 41. Rh8) 38... h2 {[%emt 0:00:00] Black mates.} 39. Rh4 {[%emt 0:00:30]} h1=Q {[%emt 0:00:00]} ({Inferior is} 39... h1=B 40. Bc2 $11) 40. Rxh1 {[%emt 0:00:04]} Bxh1 {[%emt 0:00:00]} 41. Kb4 {[%emt 0:00:15]} Kd4 {[%emt 0:08:00] Weighted Error Value: White=0.54/Black=0.20 (precise)} 0-1

[Event "ITT 1st Parada Jamundi 2022"]
[Site "Jamundi Valle"]
[Date "2022.12.07"]
[Round "3.1"]
[White "Henriquez Villagra, Cristobal"]
[Black "Mirzoev, Azer"]
[Result "1/2-1/2"]
[ECO "D02"]
[WhiteElo "2587"]
[BlackElo "2462"]
[Annotator "TA"]
[PlyCount "87"]
[EventDate "2022.12.05"]
[EventType "swiss"]
[EventCountry "COL"]
[SourceTitle "playchess.com"]
[Source "ChessBase"]
[SourceQuality "1"]
[TimeControl "5400+30"]

{[%evp 10,87,36,20,18,0,0,0,14,0,27,25,31,12,22,6,29,19,70,72,82,52,60,60,48,41,68,71,81,67,91,10,9,0,12,-31,-29,-28,-19,-25,-30,-29,-29,-29,-36,-43,-32,-57,-57,-58,-64,-62,-29,-29,-29,-60,-30,-37,0,-70,0,-70,-58,-231,0,-94,-32,-141,-147,-214,-84,-214,-215,-207,-207,-215,0,-216,-238,-1147]} 1. d4 {[%emt 0:00:02]} d5 {[%emt 0:02:05]} 2. Bf4 {[%emt 0:01:57]} c6 {[%emt 0:00:17]} 3. e3 {[%emt 0:00:40]} Qb6 {[%emt 0:00:23]} 4. Qc1 {[%emt 0:01:08]} Nf6 {[%emt 0:00:13]} 5. Nf3 {[%emt 0:00:24]} Bf5 {[%emt 0:00:28]} 6. Be2 {[%emt 0:04:01]} Nbd7 {[%emt 0:00:40] D02: 1 d4 d5 2 Nf3 sidelines, including 2...Nf6 3 g3 and 2...Nf6 3 Bf4.} 7. h3 {[%emt 0:07:47]} e6 {[%emt 0:00:33]} 8. O-O {[%emt 0:00:05]} Be7 {[%emt 0:00:18] The position is equal.} 9. c4 {[%emt 0:01:29]} a5 {[%emt 0:11:30]} 10. Nc3 {[%emt 0:07:09]} Ne4 {[%emt 0:03:53] [#]} 11. Ne5 $146 {[%emt 0:09:47]} ({Predecessor:} 11. a3 a4 12. Nd2 Ndf6 13. f3 Nxd2 14. Qxd2 O-O 15. c5 Qa5 16. Bd1 b5 17. cxb6 {1-0 (56) Tristan,L (2561)-Turzo,A (2340) Chess.com INT 2022}) 11... Nxe5 {[%emt 0:01:54]} 12. Bxe5 {[%emt 1:02:01]} O-O {[%emt 0:01:02]} 13. c5 {[%emt 0:00:00]} Nxc3 {[%emt 0:12:43]} 14. bxc3 $14 {[%emt 0:00:00][%cal Bb2c3,Bc3c4,Bc4c5][%mdl 32]} (14. cxb6 $2 {loses.} Nxe2+ 15. Kh2 Nxc1 $19) 14... Qa7 {[%emt 0:02:13]} 15. c4 {[%emt 0:00:00]} b6 {[%emt 0:04:10]} 16. cxb6 {[%emt 0:00:00]} Qxb6 {[%emt 0:00:04]} 17. c5 {[%emt 0:00:00]} Qb4 {[%emt 0:00:17]} 18. Rd1 {[%emt 0:00:00]} Bf6 {[%emt 0:03:08]} 19. Bxf6 {[%emt 0:00:00]} gxf6 {[%emt 0:00:52]} 20. h4 {[%emt 0:00:00]} (20. Bd3 $1 $16 {[%cal Rd3f5]}) 20... Rfb8 $11 {[%emt 0:08:22]} 21. Rd2 {[%emt 0:00:00]} h6 {[%emt 0:03:04]} 22. Bd3 {[%emt 0:00:00]} Bxd3 {[%emt 0:09:04]} 23. Rxd3 {[%emt 0:00:00]} a4 {[%emt 0:02:57] Prevents Rb3.} 24. Qd1 {[%emt 0:00:00][%cal Oe3e4]} Kh7 {[%emt 0:03:39]} 25. Kh2 {[%emt 0:00:00]} Rb7 {[%emt 0:02:26]} 26. Rc1 {[%emt 0:00:00]} f5 {[%emt 0:01:16]} (26... Rg8 {with more complications.} 27. Qe2 Qa5 28. Ra3 f5) 27. Qe2 {[%emt 0:00:00]} Rg8 {[%emt 0:02:40]} 28. g3 {[%emt 0:08:00]} Qa5 {[%emt 0:00:38]} 29. Kg2 {[%emt 0:00:00]} Rgb8 {[%emt 0:00:17]} 30. Qh5 {[%emt 0:00:00]} Qc7 {[%emt 0:24:24]} 31. Ra3 {[%emt 0:00:00]} Rb4 {[%emt 0:00:00]} 32. Rf1 {[%emt 0:00:00]} Rg8 {[%emt 0:00:00] White must now prevent ...Rg4.} 33. Qf3 {[%emt 0:00:00]} Rgb8 {[%emt 0:00:00]} 34. Kh3 {[%emt 0:00:00]} ({White should try} 34. Qh5 $11) 34... Rg8 {[%emt 0:00:00]} (34... Qb7 $15) 35. Rg1 {[%emt 0:00:00]} (35. Kg2 $11) 35... Qb8 $15 {[%emt 0:00:00]} 36. Qh5 $2 {[%emt 0:00:00]} (36. Kg2 $15) 36... Qc7 $2 {[%emt 0:00:00]} ({Black should play} 36... Rb2 $1 $19 {[%cal Rb2f2]} 37. f4 (37. Rxa4 $2 {too greedy.} Rxf2 38. a3 Qb2 $19) (37. Qxf7+ $2 Rg7 $19) 37... Rg7) 37. Qd1 {[%emt 0:00:00]} (37. Qf3 $1 $11 {remains equal.}) 37... Qa5 {[%emt 0:00:00]} (37... Rb2 $17 38. Qxa4 Rxf2) 38. Qc2 {[%emt 0:00:00]} (38. Qe2 $15) 38... Qb5 $1 $17 {[%emt 0:00:00]} 39. Kg2 {[%emt 0:00:00]} (39. Re1 $17) 39... Ra8 {[%emt 0:00:00]} (39... Rb2 $1 $19 {[%cal Rb2c2] has better winning chances.} 40. Qd1 Ra8) 40. Qd1 {[%emt 0:00:00] [#]} (40. Qd3 $17) 40... Rb2 $1 $19 {[%emt 0:00:00]} 41. Qh5 {[%emt 0:00:00] [#]} Ra7 {[%emt 0:05:30]} 42. Qd1 {[%emt 0:07:00]} Ra8 $2 {[%emt 0:00:30]} (42... Qb4 $19 43. Qd3 Rd2) 43. Rf1 $2 {[%emt 0:00:30]} (43. Qh5 $11 {and White is okay.} Ra7 44. Rc1) 43... Qb4 {[%emt 0:00:30]} 44. Rg1 $2 {[%emt 0:00:30][%mdl 32768] Weighted Error Value: White=0.42/Black=0.26 (precise) . An unexpected result.} (44. Qd3) 1/2-1/2

[Event "ITT 1st Parada Jamundi 2022"]
[Site "Jamundi Valle"]
[Date "2022.12.07"]
[Round "3.2"]
[White "Cruz, Cristhian"]
[Black "Cardoso Cardoso, Jose Gabriel"]
[Result "0-1"]
[ECO "D00"]
[WhiteElo "2552"]
[BlackElo "2483"]
[Annotator "TA"]
[PlyCount "61"]
[EventDate "2022.12.05"]
[EventType "swiss"]
[EventCountry "COL"]
[SourceTitle "playchess.com"]
[Source "ChessBase"]
[SourceQuality "1"]
[TimeControl "5400+30"]

{[%evp 9,61,-11,-10,-9,0,0,0,-30,-25,-19,-15,-33,7,0,3,-28,-25,-12,-8,-39,-34,-50,-41,-55,-50,-48,-47,-46,-44,-43,-39,-50,-39,-51,-38,-51,-43,-39,-43,-51,-50,-54,-41,-44,-12,-181,-204,-261,-248,-290,-281,-279,-285,-290]} 1. d4 {[%emt 0:02:49]} Nf6 {[%emt 0:02:50]} 2. Nc3 {[%emt 0:01:31]} d5 {[%emt 0:00:38]} 3. Bf4 {[%emt 0:00:15]} a6 {[%emt 0:02:33]} 4. e3 {[%emt 0:00:51]} b5 {[%emt 0:03:06]} 5. Nf3 {[%emt 0:10:11]} e6 {[%emt 0:01:44]} 6. Bd3 {[%emt 0:05:07] D00: 1 d4 d5: Unusual lines.} c5 {[%emt 0:03:29]} 7. dxc5 {[%emt 0:05:59]} Bxc5 {[%emt 0:00:14]} 8. O-O {[%emt 0:05:58] The position is equal.} Bb7 {[%emt 0:01:17]} 9. Ne2 {[%emt 0:16:51][%cal Bc3e2,Be2d4,Bd4b3][%mdl 32]} O-O {[%emt 0:01:12] [#]} 10. Ned4 $146 {[%emt 0:07:45]} ({Predecessor:} 10. a4 b4 11. c3 bxc3 12. Nxc3 Nc6 13. Qb3 Na5 14. Qd1 Qb6 15. Na2 Nc6 16. b4 Nxb4 {1-0 (41) Vetokhin,S (2309)-Lazavik,D (2436) Chess.com INT 2021}) 10... Bd6 {[%emt 0:01:34]} 11. c3 {[%emt 0:06:26]} Re8 {[%emt 0:04:02] [#] ...e5 is the strong threat.} 12. Bxd6 {[%emt 0:05:30]} (12. Ne5 {is interesting.} Qc7 13. Ng4 Nbd7 14. Bxd6 Qxd6 15. f4) 12... Qxd6 {[%emt 0:00:04]} 13. Be2 {[%emt 0:06:04]} e5 {[%emt 0:04:04]} 14. Nb3 {[%emt 0:00:21]} (14. Nf5 $5 {[%cal Rf5d6]} Qc5 15. a4 $15) 14... Bc6 {[%emt 0:13:29]} 15. Na5 {[%emt 0:01:29]} Bd7 $1 {[%emt 0:00:16] Against a4} 16. Nd2 {[%emt 0:01:45]} Qc7 {[%emt 0:03:10]} 17. Ndb3 {[%emt 0:03:33][%cal Bd2b3,Bb3c1,Bc1d3][%mdl 32]} Nc6 {[%emt 0:00:27]} 18. Nxc6 Qxc6 {[%emt 0:00:05]} 19. Nc1 {[%emt 0:05:48]} a5 {[%emt 0:10:18]} 20. Nd3 {[%emt 0:00:47]} Qb6 {[%emt 0:06:46]} 21. a3 {[%emt 0:00:32]} Rac8 {[%emt 0:01:12]} 22. Rc1 {[%emt 0:00:10]} Bf5 {[%emt 0:05:20]} 23. Re1 {[%emt 0:05:01]} h6 {[%emt 0:04:20]} 24. Qb3 {[%emt 0:01:59]} Qc6 {[%emt 0:01:02]} 25. Red1 {[%emt 0:00:56]} Qc4 {[%emt 0:01:57]} 26. Qc2 {[%emt 0:01:34]} d4 {[%emt 0:04:17]} 27. Qd2 $2 {[%emt 0:03:39] [#] Now White is beyond hope.} (27. exd4 $11 exd4 28. Qd2) 27... Ne4 $19 {[%emt 0:02:13][%csl LRc3,LRd2]} 28. Nxe5 {[%emt 0:01:06]} Nxd2 {[%emt 0:04:35]} 29. Bxc4 {[%emt 0:00:02]} Nxc4 {[%emt 0:02:41]} 30. Nxc4 {[%emt 0:00:32]} bxc4 {[%emt 0:00:12]} ({And not} 30... Rxc4 31. Rxd4 f6 32. Rcd1 $17) 31. Rxd4 {[%emt 0:00:21] Weighted Error Value: White=0.24 (precise) /Black=0.05 (flawless)} 0-1